fUSD/lending_fUSD_20250720
["ID","MTS","AMOUNT","RATE_DAILY","PERIOD"]
[373436573,1753011044139,-500.0,0.0001863,2]
[373436574,1753011044147,-1579.0,0.0001863,2]
[373436575,1753011044156,-1118.0,0.0001863,2]
[373436576,1753011044167,-260.65019681,0.0001863,2]
[373436577,1753011044176,-255.68981412,0.0001863,2]
[373436578,1753011044185,-787.0,0.0001863,2]
[373436579,1753011044195,-150.0,0.0001863,2]
[373436580,1753011044204,-167.52,0.0001863,2]
[373436581,1753011044214,-72182.59,0.0001863,2]
[373436582,1753011044223,-832.48,0.0001863,2]
[373436583,1753011044232,-2298.5125063,0.00018646,2]
[373436584,1753011044241,-1680.0,0.00018659,2]
[373436585,1753011044250,-4394.39371568,0.00018666,2]
[373436586,1753011044260,-234.01603675,0.00018667,2]
[373436587,1753011044269,-442.69040941,0.00018667,2]
[373436588,1753011044279,-110515.2962029,0.00018668,2]
[373436589,1753011044288,-777.5330235,0.00018668,2]
[373436591,1753011044297,-153.458759,0.00018668,2]
[373436593,1753011044307,-151.0,0.00018668,2]
[373436595,1753011044316,-151.0,0.00018668,2]
[373436597,1753011044326,-168.0,0.00018698,2]
[373436599,1753011044335,-689.42247168,0.00018699,2]
[373436600,1753011044344,-3269.7252,0.000187,2]
[373436602,1753011044354,-204.121197,0.00018713,2]
[373436604,1753011044363,-151.0,0.00018713,2]
[373436605,1753011044372,-151.0,0.00018713,2]
[373436606,1753011044381,-151.0,0.00018713,2]
[373436607,1753011044390,-151.0,0.00018713,2]
[373436608,1753011044400,-590.71202,0.00018713,2]
[373436609,1753011044409,-151.0,0.00018713,2]
[373436610,1753011044419,-175.932688,0.00018713,2]
[373436611,1753011044428,-175.932688,0.00018713,2]
[373436612,1753011044437,-151.0,0.00018713,2]
[373436613,1753011044446,-151.0,0.00018713,2]
[373436614,1753011044456,-153.687646,0.00018713,2]
[373436615,1753011044465,-151.0,0.00018713,2]
[373436616,1753011044474,-151.0,0.00018713,2]
[373436617,1753011044483,-151.0,0.00018713,2]
[373436618,1753011044493,-151.0,0.00018713,2]
[373436619,1753011044502,-156.54539,0.00018713,2]
[373436620,1753011044511,-18497.2755,0.00018713,2]
[373436621,1753011044520,-250.35,0.0001877,2]
[373436622,1753011044529,-500.0,0.00018773,2]
[373436623,1753011044541,-577782.34181899,0.0001878,2]
[373436624,1753011044550,-14418.96928696,0.0001878,2]
[373436625,1753011044560,-546.0,0.0001878,2]
[373436626,1753011044569,-689.42247168,0.00018785,2]
[373436627,1753011044580,-150.0,0.00018795,2]
[373436628,1753011044591,-151.0,0.00018799,2]
[373436629,1753011044600,-151.0,0.00018799,2]
[373436630,1753011044611,-151.0,0.00018799,2]
[373436631,1753011044621,-151.0,0.00018799,2]
[373436632,1753011044630,-151.0,0.00018799,2]
[373436633,1753011044640,-151.0,0.00018799,2]
[373436634,1753011044649,-360.40977,0.000188,2]
[373436635,1753011044658,-151.0,0.000188,2]
[373436636,1753011044667,-151.0,0.000188,2]
[373436637,1753011044677,-19778.1,0.000188,2]
[373436638,1753011044687,-3955.62,0.000188,2]
[373436639,1753011044696,-2373.37,0.000188,2]
[373436640,1753011044706,-9218.56,0.000188,2]
[373436641,1753011044715,-4394.39371568,0.00018824,2]
[373436642,1753011044724,-10542.47007525,0.00018867,2]
[373436643,1753011044734,-200.0,0.00018868,2]
[373436644,1753011044744,-689.42247168,0.00018871,2]
[373436645,1753011044754,-500.0,0.00018873,2]
[373436646,1753011044763,-500.0,0.00018873,2]
[373436647,1753011044773,-259.88288067,0.00018873,2]
[373436648,1753011044783,-200.0,0.00018874,2]
[373436649,1753011044792,-200.0,0.00018877,2]
[373436650,1753011044801,-239.84119403,0.00018878,2]
[373436651,1753011044811,-5422.9783654,0.00018884,2]
[373436652,1753011044820,-5422.9783654,0.00018888,2]
[373436653,1753011044830,-738.58433713,0.0001889,2]
[373436654,1753011044839,-200.0,0.00018891,2]
[373436655,1753011044850,-871.62184828,0.00018894,2]
[373436656,1753011044859,-200.0,0.00018895,2]
[373436657,1753011044869,-259.88288067,0.00018896,2]
[373436658,1753011044879,-122947.29628288,0.00018897,2]
[373436659,1753011044888,-151.0,0.00018899,2]
[373436660,1753011044899,-151.0,0.00018899,2]
[373436661,1753011044909,-151.0,0.00018899,2]
[373436662,1753011044919,-151.0,0.00018899,2]
[373436663,1753011044928,-151.682884,0.00018899,2]
[373436664,1753011044940,-151.0,0.00018899,2]
[373436665,1753011044949,-151.0,0.00018899,2]
[373436666,1753011044958,-151.0,0.00018899,2]
[373436667,1753011044967,-151.0,0.00018899,2]
[373436668,1753011044978,-156.240784,0.00018899,2]
[373436669,1753011044987,-742.714057,0.00018899,2]
[373436670,1753011044997,-742.714057,0.00018899,2]
[373436671,1753011045007,-151.0,0.00018899,2]
[373436672,1753011045016,-151.0,0.00018899,2]
[373436673,1753011045026,-282.623882,0.00018899,2]
[373436674,1753011045036,-151.0,0.00018899,2]
[373436675,1753011045045,-282.623882,0.00018899,2]
[373436676,1753011045055,-151.0,0.00018899,2]
[373436677,1753011045065,-151.305741,0.00018899,2]
[373436678,1753011045075,-19778.1,0.000189,2]
[373436679,1753011045085,-19778.1,0.000189,2]
[373436680,1753011045096,-3955.62,0.000189,2]
[373436681,1753011045107,-9218.56,0.000189,2]
[373436682,1753011045116,-9218.56,0.000189,2]
[373436683,1753011045125,-161.701781,0.000189,2]
[373436684,1753011045134,-151.0,0.000189,2]
[373436685,1753011045143,-151.0,0.000189,2]
[373436686,1753011045153,-151.0,0.000189,2]
[373436687,1753011045172,-199.387193,0.000189,2]
[373436688,1753011045182,-151.0,0.000189,2]
[373436689,1753011045191,-153.59803,0.000189,2]
[373436690,1753011045200,-151.0,0.000189,2]
[373436691,1753011045209,-239.90847,0.000189,2]
[373436692,1753011045218,-239.90847,0.000189,2]
[373436693,1753011045228,-151.0,0.000189,2]
[373436694,1753011045237,-151.0,0.000189,2]
[373436695,1753011045247,-412.19721,0.000189,2]
[373436696,1753011045255,-151.0,0.000189,2]
[373436697,1753011045264,-332.559023,0.000189,2]
[373436698,1753011045274,-332.559023,0.000189,2]
[373436699,1753011045283,-168.925513,0.000189,2]
[373436700,1753011045291,-151.0,0.000189,2]
[373436701,1753011045300,-156.002923,0.000189,2]
[373436702,1753011045309,-151.0,0.000189,2]
[373436703,1753011045319,-151.0,0.000189,2]
[373436704,1753011045328,-151.0,0.000189,2]
[373436705,1753011045337,-151.0,0.000189,2]
[373436706,1753011045346,-151.0,0.000189,2]
[373436707,1753011045355,-151.0,0.000189,2]
[373436708,1753011045364,-151.0,0.000189,2]
[373436709,1753011045373,-151.0,0.000189,2]
[373436710,1753011045382,-418.595096,0.000189,2]
[373436711,1753011045391,-418.595096,0.000189,2]
[373436712,1753011045401,-151.0,0.000189,2]
[373436713,1753011045410,-151.0,0.000189,2]
[373436714,1753011045419,-151.0,0.000189,2]
[373436715,1753011045428,-151.0,0.000189,2]
[373436716,1753011045438,-153.380754,0.000189,2]
[373436717,1753011045447,-151.0,0.000189,2]
[373436718,1753011045456,-206.018654,0.000189,2]
[373436719,1753011045465,-206.018654,0.000189,2]
[373436720,1753011045474,-151.0,0.000189,2]
[373436721,1753011045484,-590.71202,0.000189,2]
[373436722,1753011045493,-151.0,0.000189,2]
[373436723,1753011045502,-151.0,0.000189,2]
[373436724,1753011045511,-151.0,0.000189,2]
[373436725,1753011045520,-151.376179,0.000189,2]
[373436726,1753011045529,-151.0,0.000189,2]
[373436727,1753011045540,-151.0,0.000189,2]
[373436728,1753011045551,-175.932688,0.000189,2]
[373436729,1753011045560,-175.932688,0.000189,2]
[373436730,1753011045569,-151.0,0.000189,2]
[373436731,1753011045580,-151.0,0.000189,2]
[373436732,1753011045589,-151.0,0.000189,2]
[373436733,1753011045599,-151.0,0.000189,2]
[373436734,1753011045608,-151.0,0.000189,2]
[373436735,1753011045618,-151.0,0.000189,2]
[373436736,1753011045627,-151.0,0.000189,2]
[373436737,1753011045636,-151.0,0.000189,2]
[373436738,1753011045645,-151.0,0.000189,2]
[373436739,1753011045655,-151.0,0.000189,2]
[373436740,1753011045664,-151.0,0.000189,2]
[373436741,1753011045674,-152.4981085,0.000189,2]
[373436742,1753011045683,-151.0,0.000189,2]
[373436743,1753011045693,-200.0,0.00018901,2]
[373436744,1753011045702,-30398.52229591,0.00018901,2]
[373436745,1753011045718,-92548.77398697,0.00018901,2]
[373436746,1753011045727,-500.0,0.00018904,2]
[373436747,1753011045737,-500.0,0.00018904,2]
[373436748,1753011045746,-250.0,0.00018904,2]
[373436749,1753011045755,-2810.0,0.00018904,2]
[373436750,1753011045765,-432.0,0.00018904,2]
[373436751,1753011045775,-250.0,0.00018904,2]
[373436752,1753011045784,-173.61577195,0.00018904,2]
[373436753,1753011045793,-500.0,0.00018904,2]
[373436754,1753011045802,-1579.0,0.00018904,2]
[373436755,1753011045812,-1118.0,0.00018904,2]
[373436756,1753011045821,-787.0,0.00018904,2]
[373436757,1753011045830,-151.0,0.00018904,2]
[373436758,1753011045840,-151.0,0.00018904,2]
[373436759,1753011045849,-151.0,0.00018904,2]
[373436760,1753011045858,-590.71202,0.00018904,2]
[373436761,1753011045867,-151.0,0.00018904,2]
[373436762,1753011045877,-175.932688,0.00018904,2]
[373436763,1753011045886,-151.0,0.00018904,2]
[373436764,1753011045895,-175.932688,0.00018904,2]
[373436765,1753011045904,-151.0,0.00018904,2]
[373436766,1753011045914,-151.0,0.00018904,2]
[373436767,1753011045924,-151.0,0.00018904,2]
[373436768,1753011045933,-151.0,0.00018904,2]
[373436770,1753011045943,-151.0,0.00018904,2]
[373436771,1753011045952,-742.714057,0.00018904,2]
[373436772,1753011045961,-742.714057,0.00018904,2]
[373436773,1753011045970,-282.623882,0.00018904,2]
[373436774,1753011045980,-282.623882,0.00018904,2]
[373436775,1753011045990,-151.0,0.00018904,2]
[373436777,1753011045999,-150.0,0.00018904,2]
[373436778,1753011046008,-871.62184828,0.00018904,2]
[373436779,1753011046017,-200.0,0.00018905,2]
[373436780,1753011046027,-122947.29628288,0.00018905,2]
[373436781,1753011046037,-200.0,0.00018907,2]
[373436782,1753011046046,-200.0,0.00018912,2]
[373436783,1753011046055,-200.0,0.00018912,2]
[373436784,1753011046064,-200.0,0.00018913,2]
[373436786,1753011046073,-738.58433713,0.00018914,2]
[373436788,1753011046083,-200.0,0.00018918,2]
[373436789,1753011046093,-259.88288067,0.00018925,2]
[373436790,1753011046102,-200.0,0.00018925,2]
[373436791,1753011046114,-200.0,0.00018928,2]
[373436792,1753011046134,-10542.47007525,0.0001893,2]
[373436793,1753011046155,-7332.86256138,0.00018939,2]
[373436794,1753011046164,-200.0,0.00018943,2]
[373436795,1753011046174,-200.0,0.00018945,2]
[373436796,1753011046184,-871.62184828,0.00018947,2]
[373436797,1753011046193,-200.0,0.00018954,2]
[373436798,1753011046202,-689.42247168,0.00018956,2]
[373436799,1753011046212,-738.58433713,0.00018957,2]
[373436800,1753011046221,-200.0,0.00018958,2]
[373436801,1753011046231,-7332.86256138,0.00018966,2]
[373436802,1753011046240,-200.0,0.00018973,2]
[373436803,1753011046250,-151.0,0.00018973,2]
[373436804,1753011046259,-151.881329,0.00018973,2]
[373436805,1753011046269,-151.0,0.00018973,2]
[373436806,1753011046279,-151.0,0.00018973,2]
[373436807,1753011046288,-200.0,0.00018978,2]
[373436808,1753011046298,-200.0,0.00018979,2]
[373436809,1753011046308,-200.0,0.00018981,2]
[373436810,1753011046317,-4394.39371568,0.00018983,2]
[373436811,1753011046327,-200.0,0.00018984,2]
[373436812,1753011046559,-200.0,0.00018985,2]
[373436813,1753011046569,-200.0,0.00018988,2]
[373436814,1753011046580,-490.05138225,0.0001899,2]
[373436815,1753011046589,-200.0,0.00018991,2]
[373436816,1753011046598,-5422.9783654,0.00018993,2]
[373436817,1753011046608,-200.0,0.00018996,2]
[373436818,1753011046618,-10542.47007525,0.00018997,2]
[373436819,1753011046627,-7332.86256138,0.00018998,2]
[373436820,1753011046637,-151.0,0.00018999,2]
[373436821,1753011046646,-151.0,0.00018999,2]
[373436822,1753011046656,-151.0,0.00018999,2]
[373436823,1753011046666,-332.559023,0.00018999,2]
[373436824,1753011046675,-332.559023,0.00018999,2]
[373436825,1753011046685,-19778.1,0.00019,2]
[373436826,1753011046695,-5000.0,0.00019,2]
[373436827,1753011046704,-9218.56,0.00019,2]
[373436828,1753011046714,-250.0,0.00019,7]
[373436829,1753011046725,-250.0,0.00019,7]
[373436830,1753011046735,-3000.0,0.00019,5]
[373436831,1753011046744,-1000.0,0.00019,2]
[373436832,1753011046754,-218821.05110001,0.00019,5]
[373436833,1753011046763,-1491.01967036,0.00019,2]
[373436834,1753011046772,-152.010109,0.00019,2]
[373436835,1753011046782,-151.0,0.00019,2]
[373436836,1753011046792,-151.0,0.00019,2]
[373436837,1753011046801,-151.0,0.00019,2]
[373436838,1753011046811,-1033.890115,0.00019,2]
[373436839,1753011046820,-151.0,0.00019,2]
[373436840,1753011046829,-151.0,0.00019,2]
[373436841,1753011046839,-151.0,0.00019,2]
[373436842,1753011046848,-151.0,0.00019,2]
[373436843,1753011046857,-151.0,0.00019,2]
[373436844,1753011046866,-239.90847,0.00019,2]
[373436845,1753011046876,-239.90847,0.00019,2]
[373436846,1753011046888,-239.90847,0.00019,2]
[373436848,1753011046897,-239.90847,0.00019,2]
[373436850,1753011046906,-151.0,0.00019,2]
[373436852,1753011046915,-151.0,0.00019,2]
[373436854,1753011046925,-151.0,0.00019,2]
[373436856,1753011046935,-151.0,0.00019,2]
[373436858,1753011046944,-151.0,0.00019,2]
[373436859,1753011046953,-151.0,0.00019,2]
[373436860,1753011046962,-151.0,0.00019,2]
[373436861,1753011046972,-412.19721,0.00019,2]
[373436862,1753011046981,-412.19721,0.00019,2]
[373436863,1753011046990,-332.559023,0.00019,2]
[373436864,1753011046999,-332.559023,0.00019,2]
[373436865,1753011047008,-151.0,0.00019,2]
[373436866,1753011047018,-151.0,0.00019,2]
[373436867,1753011047027,-151.0,0.00019,2]
[373436868,1753011047036,-151.0,0.00019,2]
[373436869,1753011047045,-152.116834,0.00019,2]
[373436870,1753011047054,-155.755805,0.00019,2]
[373436871,1753011047064,-151.0,0.00019,2]
[373436872,1753011047073,-151.0,0.00019,2]
[373436873,1753011047082,-151.0,0.00019,2]
[373436874,1753011047092,-151.0,0.00019,2]
[373436875,1753011047101,-151.0,0.00019,2]
[373436876,1753011047110,-151.0,0.00019,2]
[373436877,1753011047119,-151.0,0.00019,2]
[373436878,1753011047128,-418.595096,0.00019,2]
[373436879,1753011047137,-418.595096,0.00019,2]
[373436880,1753011047146,-418.595096,0.00019,2]
[373436881,1753011047155,-418.595096,0.00019,2]
[373436882,1753011047165,-151.0,0.00019,2]
[373436883,1753011047174,-151.0,0.00019,2]
[373436884,1753011047184,-151.0,0.00019,2]
[373436885,1753011047193,-151.0,0.00019,2]
[373436886,1753011047202,-151.0,0.00019,2]
[373436887,1753011047211,-206.018654,0.00019,2]
[373436888,1753011047221,-206.018654,0.00019,2]
[373436889,1753011047230,-206.018654,0.00019,2]
[373436890,1753011047239,-206.018654,0.00019,2]
[373436891,1753011047248,-175.031762,0.00019,2]
[373436892,1753011047257,-590.71202,0.00019,2]
[373436893,1753011047266,-151.0,0.00019,2]
[373436894,1753011047276,-151.0,0.00019,2]
[373436895,1753011047285,-152.435972,0.00019,2]
[373436896,1753011047294,-151.0,0.00019,2]
[373436897,1753011047303,-151.0,0.00019,2]
[373436898,1753011047312,-151.0,0.00019,2]
[373436899,1753011047321,-151.0,0.00019,2]
[373436900,1753011047330,-175.932688,0.00019,2]
[373436901,1753011047339,-151.0,0.00019,2]
[373436902,1753011047348,-175.932688,0.00019,2]
[373436903,1753011047358,-153.666057,0.00019,2]
[373436904,1753011047367,-151.0,0.00019,2]
[373436905,1753011047376,-151.0,0.00019,2]
[373436906,1753011047385,-151.0,0.00019,2]
[373436907,1753011047395,-151.0,0.00019,2]
[373436908,1753011047403,-151.0,0.00019,2]
[373436909,1753011047413,-151.0,0.00019,2]
[373436910,1753011047422,-151.0,0.00019,2]
[373436911,1753011047431,-151.0,0.00019,2]
[373436912,1753011047440,-151.0,0.00019,2]
[373436913,1753011047449,-151.0,0.00019,2]
[373436914,1753011047458,-151.0,0.00019,2]
[373436915,1753011047467,-151.0,0.00019,2]
[373436916,1753011047477,-151.0,0.00019,2]
[373436917,1753011047486,-742.714057,0.00019,2]
[373436918,1753011047496,-742.714057,0.00019,2]
[373436919,1753011047505,-151.0,0.00019,2]
[373436920,1753011047514,-151.0,0.00019,2]
[373436921,1753011047524,-151.0,0.00019,2]
[373436922,1753011047533,-151.0,0.00019,2]
[373436923,1753011047546,-151.0,0.00019,2]
[373436924,1753011047556,-282.623882,0.00019,2]
[373436925,1753011047566,-151.0,0.00019,2]
[373436926,1753011047575,-282.623882,0.00019,2]
[373436927,1753011047586,-226.385083,0.00019,2]
[373436928,1753011047595,-151.0,0.00019,2]
[373436929,1753011047604,-151.0,0.00019,2]
[373436930,1753011047614,-437.88,0.00019016,2]
[373436931,1753011047623,-689.42247168,0.00019042,2]
[373436932,1753011047634,-360.40976,0.0001905,2]
[373436933,1753011047643,-2429.709,0.00019073,2]
[373436934,1753011047653,-2871.03334013,0.00019078,2]
[373436935,1753011047663,-2500.0,0.00019078,2]
[373436936,1753011047672,-8765.07269972,0.000191,2]
[373436937,1753011047682,-49778.24858228,0.000191,2]
[373436938,1753011047691,-151.0,0.000191,2]
[373436939,1753011047701,-151.621964,0.000191,2]
[373436940,1753011047711,-151.0,0.000191,2]
[373436941,1753011047720,-151.0,0.000191,2]
[373436942,1753011047730,-151.0,0.000191,2]
[373436943,1753011047740,-151.0,0.000191,2]
[373436944,1753011047750,-160.034023,0.000191,2]
[373436945,1753011047760,-151.0,0.000191,2]
[373436946,1753011047770,-742.714057,0.000191,2]
[373436947,1753011047780,-742.714057,0.000191,2]
[373436948,1753011047792,-151.0,0.000191,2]
[373436949,1753011047801,-282.623882,0.000191,2]
[373436950,1753011047810,-151.0,0.000191,2]
[373436951,1753011047820,-282.623882,0.000191,2]
[373436952,1753011047830,-182.67,0.00019112,2]
[373436953,1753011047840,-167.01,0.00019124,2]
[373436954,1753011047850,-151.0,0.00019127,2]
[373436955,1753011047859,-151.0,0.00019127,2]
[373436956,1753011047869,-151.0,0.00019127,2]
[373436957,1753011047878,-689.42247168,0.00019128,2]
[373436958,1753011047888,-4394.39371568,0.00019141,2]
[373436959,1753011047898,-207.657804,0.00019153,2]
[373436960,1753011047909,-7965.41053268,0.00019153,2]
[373436961,1753011047918,-500.0,0.00019164,2]
[373436962,1753011047929,-1400.0,0.00019164,2]
[373436963,1753011047939,-151.0,0.00019164,2]
[373436964,1753011047948,-269.313663,0.00019164,2]
[373436965,1753011047957,-151.0,0.00019164,2]
[373436966,1753011047966,-206.018654,0.00019164,2]
[373436967,1753011047975,-206.018654,0.00019164,2]
[373436968,1753011047985,-590.71202,0.00019164,2]
[373436969,1753011047994,-151.0,0.00019164,2]
[373436970,1753011048003,-175.932688,0.00019164,2]
[373436971,1753011048012,-151.0,0.00019164,2]
[373436972,1753011048021,-175.932688,0.00019164,2]
[373436973,1753011048031,-151.0,0.00019164,2]
[373436974,1753011048040,-151.0,0.00019164,2]
[373436975,1753011048049,-362.12832832,0.00019173,2]
[373436976,1753011048058,-201.88798212,0.00019173,2]
[373436977,1753011048068,-399.0254668,0.00019173,2]
[373436978,1753011048077,-498.26015357,0.00019173,2]
[373436979,1753011048086,-500.0,0.00019173,2]
[373436980,1753011048095,-434.54822318,0.00019173,2]
[373436981,1753011048104,-501.08281634,0.00019173,2]
[373436982,1753011048114,-400.22356719,0.00019173,2]
[373436983,1753011048123,-478.21031098,0.00019173,2]
[373436984,1753011048132,-503.34722662,0.00019173,2]
[373436985,1753011048141,-501.2080838,0.00019173,2]
[373436986,1753011048150,-500.0,0.00019173,2]
[373436987,1753011048160,-500.0,0.00019173,2]
[373436988,1753011048169,-501.59057719,0.00019173,2]
[373436989,1753011048179,-555.5109164,0.00019173,2]
[373436990,1753011048189,-500.6093395,0.00019173,2]
[373436991,1753011048202,-500.0,0.00019173,2]
[373436992,1753011048212,-501.173686,0.00019173,2]
[373436993,1753011048222,-500.0,0.00019173,2]
[373436994,1753011048232,-500.0,0.00019173,2]
[373436995,1753011048242,-500.0,0.00019173,2]
[373436996,1753011048252,-500.59874626,0.00019173,2]
[373436997,1753011048261,-508.47694521,0.00019173,2]
[373436998,1753011048271,-501.97306611,0.00019173,2]
[373436999,1753011048280,-158.96970332,0.00019173,2]
[373437000,1753011048289,-502.14929429,0.00019173,2]
[373437001,1753011048299,-500.0,0.00019173,2]
[373437002,1753011048309,-500.6818048,0.00019173,2]
[373437003,1753011048318,-501.29359474,0.00019173,2]
[373437004,1753011048328,-500.0,0.00019173,2]
[373437005,1753011048337,-500.0,0.00019173,2]
[373437006,1753011048347,-500.0,0.00019173,2]
[373437007,1753011048356,-502.7587231,0.00019173,2]
[373437008,1753011048366,-500.17241131,0.00019173,2]
[373437009,1753011048375,-151.0,0.00019173,2]
[373437010,1753011048385,-151.0,0.00019173,2]
[373437011,1753011048395,-204.220664,0.00019173,2]
[373437012,1753011048404,-151.0,0.00019173,2]
[373437013,1753011048413,-151.0,0.00019173,2]
[373437014,1753011048422,-167.325328,0.00019173,2]
[373437015,1753011048433,-412.19721,0.00019173,2]
[373437016,1753011048442,-151.0,0.00019173,2]
[373437017,1753011048452,-151.0,0.00019173,2]
[373437018,1753011048462,-151.0,0.00019173,2]
[373437019,1753011048471,-151.0,0.00019173,2]
[373437020,1753011048481,-418.595096,0.00019173,2]
[373437021,1753011048490,-418.595096,0.00019173,2]
[373437022,1753011048500,-151.0,0.00019173,2]
[373437023,1753011048509,-217.426292,0.00019173,2]
[373437024,1753011048519,-151.0,0.00019175,2]
[373437025,1753011048529,-332.559023,0.00019175,2]
[373437026,1753011048540,-332.559023,0.00019175,2]
[373437027,1753011048550,-153.596621,0.00019177,2]
[373437028,1753011048560,-151.0,0.00019177,2]
[373437029,1753011048570,-151.0,0.00019177,2]
[373437030,1753011048580,-289.130293,0.00019177,2]
[373437031,1753011048591,-1841.999997,0.00019177,2]
[373437032,1753011048602,-300.0,0.00019177,2]
[373437033,1753011048612,-500.0,0.00019178,2]
[373437034,1753011048623,-500.0,0.00019178,2]
[373437035,1753011048634,-2810.0,0.00019178,2]
[373437036,1753011048644,-432.0,0.00019178,2]
[373437037,1753011048654,-415.09484513,0.00019178,2]
[373437038,1753011048664,-1579.0,0.00019178,2]
[373437039,1753011048673,-1118.0,0.00019178,2]
[373437040,1753011048684,-787.0,0.00019178,2]
[373437041,1753011048694,-151.0,0.00019178,2]
[373437042,1753011048703,-151.0,0.00019178,2]
[373437043,1753011048712,-151.0,0.00019178,2]
[373437044,1753011048723,-151.0,0.00019178,2]
[373437045,1753011048732,-154.258644,0.00019178,2]
[373437046,1753011048742,-233.312938,0.00019178,2]
[373437047,1753011048751,-151.0,0.00019178,2]
[373437048,1753011048761,-152.168406,0.00019178,2]
[373437049,1753011048770,-296.727203,0.00019178,2]
[373437050,1753011048780,-285.66102,0.00019178,2]
[373437051,1753011048789,-151.0,0.00019178,2]
[373437052,1753011048799,-151.0,0.00019178,2]
[373437053,1753011048809,-151.0,0.00019178,2]
[373437054,1753011048818,-192.523062,0.00019178,2]
[373437055,1753011048828,-151.0,0.00019178,2]
[373437056,1753011048837,-151.0,0.00019178,2]
[373437057,1753011048847,-151.0,0.00019178,2]
[373437058,1753011048858,-151.0,0.00019178,2]
[373437059,1753011048868,-151.0,0.00019178,2]
[373437060,1753011048877,-151.0,0.00019178,2]
[373437061,1753011048887,-222.461728,0.00019178,2]
[373437062,1753011048897,-151.0,0.00019178,2]
[373437063,1753011048907,-151.0,0.00019178,2]
[373437064,1753011048916,-164.661919,0.00019178,2]
[373437065,1753011048926,-151.0,0.00019178,2]
[373437066,1753011048935,-151.0,0.00019178,2]
[373437067,1753011048945,-151.0,0.00019178,2]
[373437068,1753011048955,-152.764194,0.00019178,2]
[373437069,1753011048964,-151.0,0.00019178,2]
[373437070,1753011048976,-151.0,0.00019178,2]
[373437071,1753011048985,-151.0,0.00019178,2]
[373437072,1753011048995,-151.0,0.00019178,2]
[373437073,1753011049005,-151.0,0.00019178,2]
[373437074,1753011049014,-151.0,0.00019178,2]
[373437075,1753011049024,-151.0,0.00019178,2]
[373437076,1753011049033,-151.0,0.00019178,2]
[373437077,1753011049042,-151.0,0.00019178,2]
[373437078,1753011049052,-151.0,0.00019178,2]
[373437079,1753011049061,-151.0,0.00019178,2]
[373437080,1753011049071,-151.0,0.00019178,2]
[373437081,1753011049080,-151.0,0.00019178,2]
[373437082,1753011049089,-151.0,0.00019178,2]
[373437083,1753011049099,-151.0,0.00019178,2]
[373437084,1753011049109,-151.0,0.00019178,2]
[373437085,1753011049118,-151.0,0.00019178,2]
[373437086,1753011049127,-151.0,0.00019178,2]
[373437087,1753011049136,-151.0,0.00019178,2]
[373437088,1753011049146,-169.828175,0.00019178,2]
[373437089,1753011049156,-151.0,0.00019178,2]